Cogmind - Beta 12 @@@ ROGUE MODE // 2023.06.18 @ 20:48:05 Player: deezy Result: Destroyed by as-28352 with Assembled Rifle Performance ------------- Evolutions (1) 500 Regions Visited (3) 600 Robots Destroyed (12) 60 Value Destroyed (445) 445 Prototype IDs (0) 0 Alien Tech Used (0) 0 Bonus (0) 0 TOTAL SCORE: 1605 Bonus ------- None Cogmind --------- Core Integrity 0/400 Matter 300/300 Energy 100/100 System Corruption 13% Temperature Cool (0) Movement Core (1700) Ox33 Location -9/Mines Parts ------- > --- POWER (1) -------- (None) > --- PROPULSION (3) --- (None) > --- UTILITY (3) ------ Large Storage Unit Huge Storage Unit > --- WEAPON (2) ------- (None) > --- INVENTORY (25) --- Wheel Flight Unit Peak State ------------ > --- POWER ------------ Light Ion Engine > --- PROPULSION ------- Aluminum Leg Aluminum Leg > --- UTILITY ---------- Heat Sink Large Storage Unit > --- WEAPON ----------- Small Laser Assault Rifle > --- INVENTORY -------- Ion Engine Light Ion Engine Light Treads Light Treads Wheel Compact Wheel Flight Unit Huge Storage Unit Terrain Scanner Medium Laser [Rating: 8] Favorites ----------- Power Light Ion Engine Engine Light Ion Engine Propulsion Aluminum Leg Leg Aluminum Leg Wheel Wheel Utility Large Storage Unit Device Heat Sink Storage Large Storage Unit Weapon Small Laser Energy Gun Small Laser Ballistic Gun Assault Rifle Build | -11 -10 -9 -9 ------- Run | Jun Mat Mat Min Slots Evolved 2 | . . 2 . Power . | . . . . Propulsion 1 | . . 1 . Utility 1 | . . 1 . Weapon . | . . . . Parts Attached 15 | . 8 5 2 Power 3 | . 1 1 1 Engine 3 | . 1 1 1 Core . | . . . . Reactor . | . . . . Propulsion 5 | . 3 2 . Treads . | . . . . Leg . | . . . . Wheel 5 | . 3 2 . Hover . | . . . . Flight . | . . . . Utility 6 | . 4 1 1 Device 2 | . 1 1 . Storage 4 | . 3 . 1 Processor . | . . . . Hackware . | . . . . Protection . | . . . . Artifact . | . . . . Weapon 1 | . . 1 . Energy Gun 1 | . . 1 . Energy Cannon . | . . . . Ballistic Gun . | . . . . Ballistic Cannon . | . . . . Launcher . | . . . . Special Weapon . | . . . . Impact Weapon . | . . . . Slashing Weapon . | . . . . Piercing Weapon . | . . . . Special Melee Weapon . | . . . . Unidentified Prototypes . | . . . . Parts Lost 9 | . . 1 8 Power 2 | . . . 2 Propulsion 3 | . . . 3 Utility 1 | . . . 1 Weapon 3 | . . 1 2 Highest Loss Streak 8 | . . 1 8 To Critical Strikes . | . . . . Average Slot Usage (%) 91 | . 96 87 56 Engine 12 | . 14 11 8 Leg 17 | . 23 . . Wheel 10 | . 4 33 18 Device 10 | . 11 11 3 Storage 13 | . 14 11 19 Energy Gun 14 | . 14 18 6 Ballistic Gun 10 | . 14 3 . Naked Turns . | . . . . Heaviest Build 107 | 11 27 29 107 Greatest Support 30 | 20 26 30 30 Greatest Overweight (x) 5 | . 1 . 5 Average Overweight (x) . | . . . 2 Largest Inventory Capacity 25 | 8 25 15 25 Average Capacity 13 | 8 12 15 22 Most Carried 10 | 6 10 6 4 Average Carried 6 | 6 7 4 3 Final Capacity 25 | 8 15 15 25 Final Carried 7 | 6 7 4 2 Class Distribution -------------------- 100% | Mutant Dominant Class ---------------- Mutant | -10/Materials Mutant | -9/Materials Mutant | -9/Mines Resources | -11 -10 -9 -9 ----------- Run | Jun Mat Mat Min Matter Collected 436 | 200 86 131 19 Remotely . | . . . . Salvage Created 496 | . 174 322 . Parts 26 | . 9 17 . Haulers Intercepted . | . . . . Recyclers Shooed . | . . . . Parts Field Recycled . | . . . . Retrieved Matter . | . . . . Parts Self-Destructed . | . . . . Prevented . | . . . . Kills | -11 -10 -9 -9 ------- Run | Jun Mat Mat Min Combat Hostiles Destroyed 12 | . 4 8 . Guns 12 | . 4 8 . Classes Destroyed 2 | . 1 1 . Grunt 11 | . 4 7 . Sentry 1 | . . 1 . Best Kill Streak 4 | . 2 4 . Combat Bots Only 4 | . 2 4 . Max Kills in Single Turn 1 | . 1 1 . Gunslinging . | . . . . Exploded . | . . . . Melee . | . . . . Uniques/NPCs Destroyed . | . . . . Combat | -11 -10 -9 -9 -------- Run | Jun Mat Mat Min Damage Taken 1377 | . 255 282 840 Core 411 | . . 46 365 Absorbed by Shields . | . . . . Core Remaining (%) 100 | 100 100 . . Volleys Fired 52 | . 22 26 4 Largest 2 | . 2 2 2 Hottest 90 | . 60 90 90 Shots Fired 98 | . 44 48 6 Gun 98 | . 44 48 6 Cannon . | . . . . Launcher . | . . . . Special . | . . . . Kinetic 30 | . 22 8 . Thermal 68 | . 22 40 6 Explosive . | . . . . Electromagnetic . | . . . . Robot Hit Streak 13 | . 6 13 1 Robot Miss Streak 4 | . 3 4 2 Penetration Max . | . . . . Secondary Targets 2 | . . 2 . Max Gunslinging Chain 1 | . . 1 . Shots Hit Robots 58 | . 25 31 2 Core Hits 27 | . 10 15 2 Critical Kills . | . . . . Critical Parts Destroyed . | . . . . Critical Strikes 1 | . . 1 . Burn 1 | . . 1 . Melee Attacks . | . . . . Impact . | . . . . Slashing . | . . . . Piercing . | . . . . Sneak Attacks . | . . . . Combat Hostiles . | . . . . Follow-up Attacks . | . . . . Damage Inflicted 728 | . 296 365 67 Guns 682 | . 296 365 21 Cannons . | . . . . Explosions . | . . . . Melee . | . . . . Ramming 46 | . . . 46 Kinetic 228 | . 164 64 . Thermal 454 | . 132 301 21 Explosive . | . . . . Electromagnetic . | . . . . Impact . | . . . . Slashing . | . . . . Piercing . | . . . . Highest Corruption 13 | . 5 . 13 Average Corruption 4 | . 3 . 11 Corruption Purged . | . . . . Corruption Blocked . | . . . . Effects 10 | . 7 . 3 Message Errors 1 | . 1 . . Matter Fused 3 | . 1 . 2 Heat Flow Errors 2 | . 1 . 1 Energy Discharges 1 | . 1 . . Parts Rejected 1 | . 1 . . Data Loss (minor) 1 | . 1 . . Data Loss (major) 1 | . 1 . . Overload Shots . | . . . . Overflow Damage . | . . . . Projectiles . | . . . . Explosions . | . . . . Melee . | . . . . Knockbacks . | . . . . Impact . | . . . . Kinetic . | . . . . Secondary . | . . . . Self-Inflicted Damage 21 | . . . 21 Shots . | . . . . Rammed 7 | . . . 7 Targets Rammed 7 | . . . 7 Kicked . | . . . . Crushed . | . . . . Highest Temperature 258 | . 152 225 258 Average Temperature 77 | . 79 77 77 Received Heat Transfer 309 | . 147 162 . Siege Activations . | . . . . Robots Corrupted . | . . . . Combat Hostiles . | . . . . Parts Fried . | . . . . Impact Corruptions . | . . . . Robots Melted . | . . . . Combat Hostiles . | . . . . Parts Melted 1 | . 1 . . Heat Transferred 1194 | . 300 844 50 Parts Sabotaged . | . . . . Parts Stolen . | . . . . Parts Stripped . | . . . . Power Chain Reactions . | . . . . Missiles Intercepted . | . . . . Alert | -11 -10 -9 -9 ------- Run | Jun Mat Mat Min Peak Influence 275 | . 125 275 121 Initial 106 | . . 40 106 Average 81 | . 68 130 80 Maximum Alert Level 1 | . . 1 . Low Security (%) 97 | 100 100 84 100 Level 1 2 | . . 15 . Level 2 . | . . . . Level 3 . | . . . . Level 4 . | . . . . Level 5 . | . . . . High Security . | . . . . Max Security . | . . . . Squads Dispatched 3 | . . 3 . Investigation 1 | . . 1 . Extermination . | . . . . Reinforcement 2 | . . 2 . Assault . | . . . . Garrison . | . . . . Intercept . | . . . . Searches Triggered . | . . . . Construction Impeded . | . . . . Haulers Reinforced . | . . . . Active Scanning Responses . | . . . . Cargo Convoy Interrupts . | . . . . Stealth | -11 -10 -9 -9 --------- Run | Jun Mat Mat Min Distress Signals 4 | . 3 1 . Communications Jammed . | . . . . Distress Signals . | . . . . Times Spotted 40 | . 13 12 15 Peak Tracking Total 12 | . 4 5 12 Tactical Retreats 5 | . 3 . 2 Traps | -11 -10 -9 -9 ------- Run | Jun Mat Mat Min Traps Triggered 4 | . 3 1 . Indirectly . | . . . . Trap Hack Attempts . | . . . . Triggered . | . . . . Disarmed . | . . . . Reprogrammed . | . . . . Reused . | . . . . Traps Extracted . | . . . . Installed . | . . . . Triggered . | . . . . Machines | -11 -10 -9 -9 ---------- Run | Jun Mat Mat Min Machines Disabled . | . . . . Max in Single Turn . | . . . . Machines Repaired . | . . . . Machines Sabotaged . | . . . . Overloaded Fab Kills . | . . . . Hacking | -11 -10 -9 -9 --------- Run | Jun Mat Mat Min Machines Accessed 3 | . 2 1 . Terminals 1 | . 1 . . Fabricators . | . . . . Repair Stations . | . . . . Recycling Units 2 | . 1 1 . Scanalyzers . | . . . . Garrison Access . | . . . . Total Hacks 6 | . 3 3 . Successful 4 | . 1 3 . Failed 2 | . 2 . . Catastrophic . | . . . . Database Lockouts . | . . . . Manual . | . . . . Terminals 2 | . 2 . . Fabricators . | . . . . Repair Stations . | . . . . Recycling Units 4 | . 1 3 . Scanalyzers . | . . . . Garrison Access . | . . . . Terminal Hacks . | . . . . Fabricator Hacks . | . . . . Repair Station Hacks . | . . . . Recycling Unit Hacks 4 | . 1 3 . Process 1 | . . 1 . Report Inventory 2 | . 1 1 . Retrieve Matter 1 | . . 1 . Scanalyzer . | . . . . Garrison Access Hacks . | . . . . Unauthorized Hacks . | . . . . Terminals . | . . . . Fabricators . | . . . . Repair Stations . | . . . . Recycling Units . | . . . . Scanalyzers . | . . . . Garrison Access . | . . . . Data Cores Recovered . | . . . . Used . | . . . . Hacking Detections 2 | . 1 1 . Full Trace Events . | . . . . Feedback Events . | . . . . Feedback Blocked . | . . . . Robot Schematics Acquired . | . . . . Robots Built . | . . . . Authchips . | . . . . Time . | . . . . Total Robot Build Rating . | . . . . Part Schematics Acquired . | . . . . Parts Built . | . . . . Authchips . | . . . . Time . | . . . . Total Part Build Rating . | . . . . Parts Repaired . | . . . . Time . | . . . . Parts Recycled . | . . . . Recycled Matter 6 | . . 6 . Retrieved Matter 6 | . . 6 . Retrieved Components . | . . . . Parts Scanalyzed . | . . . . Part Schematics Acquired . | . . . . Parts Damaged . | . . . . Bothacking | -11 -10 -9 -9 ------------ Run | Jun Mat Mat Min Used RIF Installer . | . . . . Robots Hacked . | . . . . Non-combat . | . . . . Combat . | . . . . Robot Hacks Applied . | . . . . Relay Couplers Released . | . . . . Fabnet Peak Effective % . | . . . . Robots Rewired . | . . . . Allies Hacked . | . . . . Hacks Repelled . | . . . . Allies | -11 -10 -9 -9 -------- Run | Jun Mat Mat Min Total Allies . | . . . . Largest Group . | . . . . Highest-Rated Group . | . . . . Highest-Rated Ally . | . . . . Total Orders . | . . . . Ally Attacks . | . . . . Total Damage . | . . . . Kills . | . . . . Allies Corrupted . | . . . . Allies Melted . | . . . . Intel | -11 -10 -9 -9 ------- Run | Jun Mat Mat Min Robot Analysis Total . | . . . . Derelict Logs Recovered . | . . . . Drone Launches . | . . . . Drone Recoveries . | . . . . Exploration | -11 -10 -9 -9 ------------- Run | Jun Mat Mat Min Turns Passed 1044 | 3 752 197 92 Spaces Moved 682 | 3 498 146 35 Core . | . . . . Treads . | . . . . Legs 382 | 3 379 . . Wheels 300 | . 119 146 35 Hover . | . . . . Flight . | . . . . Fastest Speed 80 | 120 90 80 80 Average Speed 120 | 120 133 80 116 Slowest Speed 190 | 120 190 80 155 Overloaded Moves . | . . . . Propulsion Burnouts . | . . . . Robots Hopped . | . . . . Cave-ins Triggered . | . . . . Exploration Rate (%) 20 | 2 59 9 10 Regions Visited 3 Branch Regions 1 Pre-discovered Areas . | . . . . Known Exits Taken . | . . . . Unknown Exits Taken 3 | 1 1 1 . Scrap Searched . | . . . . Spaces Dug . | . . . . Terrain Destroyed . | . . . . Melee . | . . . . Projectile . | . . . . AOE . | . . . . Terrain Rammed . | . . . . Walls Destroyed . | . . . . Machines Disabled . | . . . . Actions | -11 -10 -9 -9 --------- Run | Jun Mat Mat Min Total 770 | 2 544 176 48 Wait . | . . . . Move 679 | 2 497 145 35 Hop . | . . . . Pick Up 9 | . 9 . . Fast Attach . | . . . . Attach 7 | . 2 3 2 Detach 1 | . 1 . . Swap 8 | . 6 2 . Drop 7 | . 7 . . Fire 52 | . 22 26 4 Melee . | . . . . Ram 7 | . . . 7 Kick . | . . . . Crush . | . . . . Escape Stasis . | . . . . Rewire . | . . . . Trap . | . . . . Miscellaneous . | . . . . Route ------- -11/Junkyard -10/Materials -9/Materials -9/Mines History --------- Turn | Location | Event 1 | -11/Junkyard | Discovered new exit (range 1) 4 | -11/Junkyard | Entered Materials 261 | -10/Materials | Discovered new exit (range 15) 306 | -10/Materials | Build established: Mutant 756 | -10/Materials | Entered another Materials area 756 | -9/Materials | Evolved 2 slots: Propulsion x1, Utility x1 880 | -9/Materials | Discovered new exit (range 4) 953 | -9/Materials | Entered Mines 954 | -9/Mines | Assembled infested the area 955 | -9/Mines | Met a Derelict bent on vengeance 959 | -9/Mines | Assisted by a Guerilla fighting off Assembled 981 | -9/Mines | System corruption reached 10% 1026 | -9/Mines | Core integrity fell below 50% 1038 | -9/Mines | Core integrity fell below 20% 1045 | -9/Mines | Destroyed by as-28352 with Assembled Rifle Last Messages --------------- 01004_ WB-8OO(h) knocked back. 01005_ Slammed into as-28352. 01005_ Destabilizing: Core damaged (-12). 01006_ System corrupted: Matter fused (-8). 01006_ Acquired 2 matter. 01007_ Slammed into as-28352. 01008_ WB-8OO(h) destroyed. 01008_ as-21779 suffers critical hit (Destroy). 01008_ as-21779 destroyed. 01008_ Acquired 1 matter. 01010_ Slammed into as-92359. 01011_ Wheel destroyed. 01012_ Slammed into as-92359. 01013_ Wheel destroyed. 01014_ Slammed into as-27689. 01028_ Ion Engine destroyed. 01032_ System corrupted: Matter fused (-6). 01032_ Acquired 16 matter. 01032_ Slammed into as-27689. 01034_ Lgt. Ion Engine destroyed. Map ----- +----------------------------------------------------+ | | | | | | | | | | | | | | | | | | | | | | | | | | | | | | | | | ??????????????????????????????????????????? | | ??????????????????????????????????????????? | | ????????????????????#???###???????????????? | | ??????????????????????## ###?????????????? | | ??????????????????????# ###???????????? | | ????????????????????#?# ##???????????? | | ???????#??????#???????# #???????????? | | ???????# ???????####% ! !! #???????????? | | ???????# ####*a% !!!! #??#????????? | | ???????# %]a@a%=## !!!! #???????????? | | ???????# ####%##? !!!! #???????????? | | ????# ???####%%#? #???????????? | | ???? ??????## ##?#######???????????? | | ???????????????# ####?????????????????? | | ???????????????# ####??????????????? | | ???????????????## #??????????????? | | ????????????????## # #???????#??????? | | ?????????????????## # #????#????#????? | | ??????????????????## # #??????????????? | | ???????????????????### ## #????? ????????? | | ?????????????????????##### #??????????????? | | ?????????????????????#???# #??????????????? | | ?????????????????????????# #????????#?????? | | ?????????????????????????# #??????????????? | | ?????????????????????????# #??????????????? | | ?????????????????????????? ???????????????? | | ?????????????????????????? ???????????????? | | ??????????????????????????!???????????????? | | ??????????????????????????%???????????????? | | ?????????????????????????? ???????????????? | | ?????????????????????????? ???????????????? | | ?????????????????????????? ???????????????? | | ??????????????????????????????????????????? | | ??????????????????????????????????????????? | +----------------------------------------------------+ Best States ------------- Heat Dissipation 35 Energy Generation 10 Energy Capacity 250 Matter Stores 300 Matter Capacity 300 Sight Range 16 Terrain Scan Range 14 Terrain Scan Density 10 Evasion (%) 55 Item Schematics ----------------- None Robot Schematics ------------------ None Fabricated ------------ Nothing Alien Tech Used ----------------- None Achievements -------------- System Compromised Challenges ------------ None Game ------ Seed ReinforcedMolecularAmplifier Manual? 0 Play Time 00:15:31 Cumulative 6.1 hours Start 2023.06.18 @ 20:34:11 End 2023.06.18 @ 20:48:05 Sessions 1 Manual Loads 0 Difficulty Rogue Special Mode None Game No. 16 Rogue 16 Adventurer 0 Explorer 0 Win Type - Total 0 Types 0/0/0/0/0/0/0/0/0 Lore% 15 Gallery% 10 Achievement% 12 Wizard Run 0 Options --------- ASCII 0 Keyboard 1 Movement Numpad Keybinds 0 Fullscreen 1 Font 24/Proggy Map View 76x50 Tactical HUD 1 Map Filters NONE Filters NONE Steam 1 RUN: 5c4df241-b3f4-4013-a9cc-777a1112d7cd